[Event "Titled Tuesday Blitz December 06 Late 2022"]
[White "monkins"]
[Black "Meunier, Clement"]
[BlackFideId "20667930"]
[WhiteElo "2231"]
[BlackElo "2233"]
[Result "0-1"]
[Round "05"]
[TimeControl "180+1"]
[Date "2022.12.07"]
[WhiteClock "0:00:24"]
[BlackClock "0:00:10"]

1. Nf3 {[%clk 0:02:48]}  Nf6 {[%clk 0:02:59]} 2. g3 {[%clk 0:02:49]}  b5 {[%clk 0:02:59]} 3. Bg2 {[%clk 0:02:49]}  Bb7 {[%clk 0:02:58]} 4. O-O {[%clk 0:02:49]}  e6 {[%clk 0:02:58]} 5. d3 {[%clk 0:02:49]}  d5 {[%clk 0:02:56]} 6. c4 {[%clk 0:02:49]}  a6 {[%clk 0:02:52]} 7. Nbd2 {[%clk 0:02:45]}  Be7 {[%clk 0:02:48]} 8. Rb1 {[%clk 0:02:45]}  O-O {[%clk 0:02:45]} 9. b3 {[%clk 0:02:44]}  c5 {[%clk 0:02:44]} 10. cxd5 {[%clk 0:02:33]}  Nxd5 {[%clk 0:02:40]} 11. Bb2 {[%clk 0:02:32]}  Bf6 {[%clk 0:02:40]} 12. Qc1 {[%clk 0:02:27]}  Nd7 {[%clk 0:02:38]} 13. a3 {[%clk 0:02:25]}  Rc8 {[%clk 0:02:38]} 14. Ne4 {[%clk 0:02:25]}  Bxb2 {[%clk 0:02:34]} 15. Qxb2 {[%clk 0:02:26]}  Qe7 {[%clk 0:02:21]} 16. Rbc1 {[%clk 0:02:23]}  Rc7 {[%clk 0:01:53]} 17. Rc2 {[%clk 0:02:23]}  Rfc8 {[%clk 0:01:54]} 18. Rfc1 {[%clk 0:02:23]}  h6 {[%clk 0:01:43]} 19. Ne5 {[%clk 0:02:23]}  N7f6 {[%clk 0:01:14]} 20. Nxf6+ {[%clk 0:02:04]}  Qxf6 {[%clk 0:01:05]} 21. Nf3 {[%clk 0:02:04]}  Qxb2 {[%clk 0:01:03]} 22. Rxb2 {[%clk 0:02:05]}  b4 {[%clk 0:01:04]} 23. Rbc2 {[%clk 0:01:45]}  a5 {[%clk 0:00:58]} 24. Ne5 {[%clk 0:01:34]}  Nc3 {[%clk 0:00:55]} 25. Nc4 {[%clk 0:01:27]}  Bxg2 {[%clk 0:00:43]} 26. Kxg2 {[%clk 0:01:28]}  Ra8 {[%clk 0:00:38]} 27. Kf3 {[%clk 0:01:19]}  Nb5 {[%clk 0:00:38]} 28. Ke3 {[%clk 0:01:10]}  bxa3 {[%clk 0:00:33]} 29. Ra2 {[%clk 0:01:05]}  a4 {[%clk 0:00:20]} 30. Nb6 {[%clk 0:01:05]}  axb3 {[%clk 0:00:12]} 31. Nxa8 {[%clk 0:01:04]}  Ra7 {[%clk 0:00:12]} 32. Nb6 {[%clk 0:00:44]}  bxa2 {[%clk 0:00:11]} 33. Kd2 {[%clk 0:00:44]}  Rb7 {[%clk 0:00:09]} 34. Nc4 {[%clk 0:00:43]}  Nd4 {[%clk 0:00:10]} 35. Na5 {[%clk 0:00:38]}  Rb2+ {[%clk 0:00:09]} 36. Kd1 {[%clk 0:00:33]}  Rb1 {[%clk 0:00:10]} 37. e3 {[%clk 0:00:25]}  a1=Q {[%clk 0:00:09]} 38. exd4 {[%clk 0:00:24]}  Rxc1+ {[%clk 0:00:10]} 0-1


[Site "https://www.chess.com"]

[Event "Titled Tuesday Blitz December 06 Late 2022"]
[White "Adewumi, Tanitoluwa"]
[Black "Quinones Garcia, Santiago"]
[WhiteFideId "30966396"]
[BlackFideId "4408497"]
[WhiteElo "2516"]
[BlackElo "2249"]
[Result "1-0"]
[Round "06"]
[TimeControl "180+1"]
[Date "2022.12.07"]
[WhiteClock "0:00:05"]
[BlackClock "0:00:39"]

1. e4 {[%clk 0:02:50]}  c5 {[%clk 0:02:57]} 2. Nf3 {[%clk 0:02:47]}  g6 {[%clk 0:02:46]} 3. c3 {[%clk 0:02:41]}  Nc6 {[%clk 0:02:46]} 4. d4 {[%clk 0:02:33]}  cxd4 {[%clk 0:02:46]} 5. cxd4 {[%clk 0:02:27]}  d5 {[%clk 0:02:46]} 6. exd5 {[%clk 0:02:23]}  Qxd5 {[%clk 0:02:44]} 7. Nc3 {[%clk 0:02:22]}  Qa5 {[%clk 0:02:44]} 8. Bd2 {[%clk 0:02:20]}  Bg7 {[%clk 0:02:42]} 9. d5 {[%clk 0:01:51]}  Nb8 {[%clk 0:02:40]} 10. Rc1 {[%clk 0:01:48]}  Qd8 {[%clk 0:02:37]} 11. Nb5 {[%clk 0:01:40]}  Na6 {[%clk 0:02:36]} 12. Bc3 {[%clk 0:01:37]}  Nf6 {[%clk 0:02:36]} 13. Bc4 {[%clk 0:01:28]}  O-O {[%clk 0:02:35]} 14. O-O {[%clk 0:01:27]}  Bg4 {[%clk 0:02:34]} 15. h3 {[%clk 0:01:09]}  Bxf3 {[%clk 0:02:28]} 16. Qxf3 {[%clk 0:01:10]}  Rc8 {[%clk 0:02:27]} 17. b3 {[%clk 0:01:04]}  Nc7 {[%clk 0:02:19]} 18. Nxc7 {[%clk 0:00:37]}  Rxc7 {[%clk 0:02:18]} 19. Rfd1 {[%clk 0:00:37]}  Qc8 {[%clk 0:02:08]} 20. d6 {[%clk 0:00:23]}  exd6 {[%clk 0:01:56]} 21. Bxf6 {[%clk 0:00:22]}  b5 {[%clk 0:01:55]} 22. Bxg7 {[%clk 0:00:02]}  Kxg7 {[%clk 0:01:56]} 23. Rxd6 {[%clk 0:00:02]}  bxc4 {[%clk 0:01:56]} 24. Qc3+ {[%clk 0:00:02]}  Kg8 {[%clk 0:01:55]} 25. bxc4 {[%clk 0:00:03]}  Re8 {[%clk 0:01:53]} 26. Rcd1 {[%clk 0:00:03]}  Rxc4 {[%clk 0:01:51]} 27. Qf6 {[%clk 0:00:03]}  Rc1 {[%clk 0:01:50]} 28. Kh2 {[%clk 0:00:03]}  Rxd1 {[%clk 0:01:43]} 29. Rxd1 {[%clk 0:00:03]}  Qc7+ {[%clk 0:01:42]} 30. f4 {[%clk 0:00:04]}  Qc2 {[%clk 0:01:36]} 31. Rd7 {[%clk 0:00:03]}  Qxa2 {[%clk 0:01:34]} 32. h4 {[%clk 0:00:03]}  Ra8 {[%clk 0:01:14]} 33. h5 {[%clk 0:00:03]}  Qe6 {[%clk 0:01:14]} 34. Qd4 {[%clk 0:00:02]}  gxh5 {[%clk 0:01:11]} 35. Rd5 {[%clk 0:00:02]}  h6 {[%clk 0:00:58]} 36. Rxh5 {[%clk 0:00:02]}  a5 {[%clk 0:00:51]} 37. Rh3 {[%clk 0:00:02]}  a4 {[%clk 0:00:43]} 38. Rg3+ {[%clk 0:00:02]}  Kf8 {[%clk 0:00:41]} 39. Qh8+ {[%clk 0:00:02]}  Ke7 {[%clk 0:00:42]} 40. Qxa8 {[%clk 0:00:02]}  Qf5 {[%clk 0:00:39]} 41. Qxa4 {[%clk 0:00:02]}  Qh5+ {[%clk 0:00:39]} 42. Rh3 {[%clk 0:00:03]}  Qf5 {[%clk 0:00:38]} 43. Qd4 {[%clk 0:00:04]}  h5 {[%clk 0:00:38]} 44. Qe5+ {[%clk 0:00:04]}  Qxe5 {[%clk 0:00:38]} 45. fxe5 {[%clk 0:00:04]}  Ke6 {[%clk 0:00:39]} 46. Rxh5 {[%clk 0:00:05]} 1-0


[Site "https://www.chess.com"]

[Event "Titled Tuesday Blitz December 06 Late 2022"]
[White "Aldokhin, Ivan"]
[Black "Karas, Marek"]
[WhiteFideId "24115720"]
[BlackFideId "14928558"]
[WhiteElo "2313"]
[BlackElo "2247"]
[Result "1-0"]
[Round "06"]
[TimeControl "180+1"]
[Date "2022.12.07"]
[WhiteClock "0:01:07"]
[BlackClock "0:00:49"]

1. e4 {[%clk 0:03:00]}  c6 {[%clk 0:02:51]} 2. Nc3 {[%clk 0:03:00]}  d5 {[%clk 0:02:51]} 3. d4 {[%clk 0:03:01]}  dxe4 {[%clk 0:02:51]} 4. Nxe4 {[%clk 0:03:02]}  Nf6 {[%clk 0:02:51]} 5. Nxf6+ {[%clk 0:03:02]}  exf6 {[%clk 0:02:52]} 6. Nf3 {[%clk 0:03:03]}  Bd6 {[%clk 0:02:53]} 7. Bc4 {[%clk 0:03:04]}  O-O {[%clk 0:02:53]} 8. O-O {[%clk 0:03:04]}  Bg4 {[%clk 0:02:54]} 9. h3 {[%clk 0:03:05]}  Bh5 {[%clk 0:02:53]} 10. g4 {[%clk 0:03:05]}  Bg6 {[%clk 0:02:54]} 11. Nh4 {[%clk 0:03:06]}  Nd7 {[%clk 0:02:53]} 12. Bb3 {[%clk 0:02:47]}  f5 {[%clk 0:02:49]} 13. Nxf5 {[%clk 0:02:37]}  Bxf5 {[%clk 0:02:48]} 14. gxf5 {[%clk 0:02:38]}  Qf6 {[%clk 0:02:30]} 15. Qg4 {[%clk 0:02:34]}  Bc7 {[%clk 0:02:27]} 16. Bd2 {[%clk 0:01:49]}  Qd6 {[%clk 0:02:17]} 17. Rfe1 {[%clk 0:01:34]}  Nf6 {[%clk 0:02:15]} 18. Qf3 {[%clk 0:01:21]}  Qxd4 {[%clk 0:01:51]} 19. Bc3 {[%clk 0:01:21]}  Qf4 {[%clk 0:01:36]} 20. Qxf4 {[%clk 0:01:18]}  Bxf4 {[%clk 0:01:37]} 21. Bxf6 {[%clk 0:01:18]}  gxf6 {[%clk 0:01:38]} 22. Re7 {[%clk 0:01:18]}  b5 {[%clk 0:01:26]} 23. Rd1 {[%clk 0:01:11]}  Rad8 {[%clk 0:01:07]} 24. Rxd8 {[%clk 0:01:10]}  Rxd8 {[%clk 0:01:07]} 25. Rxf7 {[%clk 0:01:10]}  a5 {[%clk 0:00:49]} 26. Rd7+ {[%clk 0:01:07]} 1-0


[Site "https://www.chess.com"]

[Event "Titled Tuesday Blitz December 06 Late 2022"]
[White "Andreikin, Dmitry"]
[Black "Xiong, Jeffery"]
[WhiteFideId "4158814"]
[BlackFideId "2047640"]
[WhiteElo "2735"]
[BlackElo "2726"]
[Result "1-0"]
[Round "06"]
[TimeControl "180+1"]
[Date "2022.12.06"]
[WhiteClock "0:00:06"]
[BlackClock "0:00:09"]

1. Nf3 {[%clk 0:03:00]}  d5 {[%clk 0:02:57]} 2. g3 {[%clk 0:03:00]}  Nc6 {[%clk 0:02:55]} 3. d4 {[%clk 0:02:58]}  Bf5 {[%clk 0:02:55]} 4. Bg2 {[%clk 0:02:53]}  Nb4 {[%clk 0:02:55]} 5. Na3 {[%clk 0:02:52]}  e6 {[%clk 0:02:55]} 6. O-O {[%clk 0:02:51]}  h6 {[%clk 0:02:55]} 7. c3 {[%clk 0:02:47]}  Nc6 {[%clk 0:02:54]} 8. Nc2 {[%clk 0:02:47]}  Nf6 {[%clk 0:02:52]} 9. b3 {[%clk 0:02:47]}  Be7 {[%clk 0:02:53]} 10. Bb2 {[%clk 0:02:47]}  O-O {[%clk 0:02:54]} 11. Nce1 {[%clk 0:02:47]}  a5 {[%clk 0:02:50]} 12. a4 {[%clk 0:02:46]}  Ne4 {[%clk 0:02:49]} 13. Nd3 {[%clk 0:02:46]}  Bh7 {[%clk 0:02:49]} 14. Rc1 {[%clk 0:02:42]}  Nb8 {[%clk 0:02:49]} 15. Nd2 {[%clk 0:02:26]}  Nxd2 {[%clk 0:02:45]} 16. Qxd2 {[%clk 0:02:26]}  Na6 {[%clk 0:02:46]} 17. c4 {[%clk 0:02:11]}  c6 {[%clk 0:02:46]} 18. Rfd1 {[%clk 0:02:09]}  Qb6 {[%clk 0:02:30]} 19. Qc3 {[%clk 0:02:05]}  Rfd8 {[%clk 0:02:25]} 20. h4 {[%clk 0:01:50]}  Qc7 {[%clk 0:02:16]} 21. Bf3 {[%clk 0:01:38]}  Nb4 {[%clk 0:01:56]} 22. Nxb4 {[%clk 0:01:36]}  Bxb4 {[%clk 0:01:57]} 23. Qe3 {[%clk 0:01:36]}  Qe7 {[%clk 0:01:56]} 24. Kg2 {[%clk 0:01:23]}  Rd7 {[%clk 0:01:53]} 25. Bc3 {[%clk 0:01:20]}  Rad8 {[%clk 0:01:52]} 26. c5 {[%clk 0:01:17]}  Bxc3 {[%clk 0:01:47]} 27. Qxc3 {[%clk 0:01:16]}  Ra8 {[%clk 0:01:48]} 28. Ra1 {[%clk 0:01:08]}  Rdd8 {[%clk 0:01:36]} 29. e3 {[%clk 0:00:51]}  Rdb8 {[%clk 0:01:36]} 30. Rdc1 {[%clk 0:00:51]}  b6 {[%clk 0:01:37]} 31. Bd1 {[%clk 0:00:42]}  e5 {[%clk 0:01:17]} 32. cxb6 {[%clk 0:00:37]}  Rxb6 {[%clk 0:00:58]} 33. dxe5 {[%clk 0:00:35]}  Be4+ {[%clk 0:00:55]} 34. f3 {[%clk 0:00:35]}  Bf5 {[%clk 0:00:54]} 35. Qc5 {[%clk 0:00:31]}  Qd8 {[%clk 0:00:54]} 36. Qd6 {[%clk 0:00:27]}  Qe8 {[%clk 0:00:52]} 37. g4 {[%clk 0:00:21]}  Bd7 {[%clk 0:00:36]} 38. f4 {[%clk 0:00:20]}  Rd8 {[%clk 0:00:30]} 39. Qc5 {[%clk 0:00:19]}  Rb4 {[%clk 0:00:29]} 40. Qxa5 {[%clk 0:00:16]}  Rdb8 {[%clk 0:00:30]} 41. Qc5 {[%clk 0:00:15]}  h5 {[%clk 0:00:26]} 42. a5 {[%clk 0:00:11]}  Bxg4 {[%clk 0:00:14]} 43. Bxg4 {[%clk 0:00:11]}  hxg4 {[%clk 0:00:15]} 44. a6 {[%clk 0:00:11]}  Qd8 {[%clk 0:00:14]} 45. a7 {[%clk 0:00:10]}  Qxh4 {[%clk 0:00:09]} 46. Rh1 {[%clk 0:00:09]}  Qd8 {[%clk 0:00:09]} 47. Qxb4 {[%clk 0:00:06]} 1-0


[Site "https://www.chess.com"]

[Event "Titled Tuesday Blitz December 06 Late 2022"]
[White "Ansh M Shah"]
[Black "Reprintsev, Alexander"]
[WhiteFideId "25033379"]
[BlackFideId "14100541"]
[WhiteElo "2084"]
[BlackElo "2230"]
[Result "0-1"]
[Round "06"]
[TimeControl "180+1"]
[Date "2022.12.07"]
[WhiteClock "0:01:11"]
[BlackClock "0:01:48"]

1. d4 {[%clk 0:03:00]}  d5 {[%clk 0:02:45]} 2. c4 {[%clk 0:03:00]}  e5 {[%clk 0:02:45]} 3. dxe5 {[%clk 0:03:00]}  d4 {[%clk 0:02:44]} 4. Nf3 {[%clk 0:03:00]}  Nc6 {[%clk 0:02:44]} 5. a3 {[%clk 0:03:01]}  g6 {[%clk 0:02:44]} 6. e3 {[%clk 0:03:01]}  Bg4 {[%clk 0:02:43]} 7. exd4 {[%clk 0:02:48]}  Bxf3 {[%clk 0:02:42]} 8. Qxf3 {[%clk 0:02:33]}  Nxd4 {[%clk 0:02:42]} 9. Qe4 {[%clk 0:02:34]}  Nb3 {[%clk 0:02:30]} 10. Qxb7 {[%clk 0:02:17]}  Rb8 {[%clk 0:02:25]} 11. Qxa7 {[%clk 0:01:25]}  Nxa1 {[%clk 0:02:20]} 12. Nc3 {[%clk 0:01:21]}  Nc2+ {[%clk 0:02:13]} 13. Ke2 {[%clk 0:01:21]}  Nd4+ {[%clk 0:02:12]} 14. Ke1 {[%clk 0:01:20]}  Nc6 {[%clk 0:02:11]} 15. Qa4 {[%clk 0:01:20]}  Qd7 {[%clk 0:02:06]} 16. c5 {[%clk 0:01:19]}  Bxc5 {[%clk 0:01:59]} 17. Bb5 {[%clk 0:01:20]}  Nge7 {[%clk 0:01:59]} 18. Ke2 {[%clk 0:01:14]}  Nd4+ {[%clk 0:01:55]} 19. Ke1 {[%clk 0:01:11]}  Nxb5 {[%clk 0:01:48]} 0-1


[Site "https://www.chess.com"]

[Event "Titled Tuesday Blitz December 06 Late 2022"]
[White "Arbunic Castro, Giovanna"]
[Black "Rian, Kapriaga"]
[WhiteFideId "3400549"]
[BlackFideId "7103263"]
[WhiteElo "1933"]
[BlackElo "2249"]
[Result "0-1"]
[Round "06"]
[TimeControl "180+1"]
[Date "2022.12.07"]
[WhiteClock "0:01:03"]
[BlackClock "0:01:56"]

1. e4 {[%clk 0:02:58]}  c6 {[%clk 0:02:59]} 2. d4 {[%clk 0:02:57]}  d5 {[%clk 0:02:59]} 3. e5 {[%clk 0:02:56]}  c5 {[%clk 0:02:58]} 4. dxc5 {[%clk 0:02:54]}  e6 {[%clk 0:02:58]} 5. Qg4 {[%clk 0:02:52]}  Nd7 {[%clk 0:02:54]} 6. Bb5 {[%clk 0:02:46]}  Ne7 {[%clk 0:02:51]} 7. f4 {[%clk 0:02:39]}  Qa5+ {[%clk 0:02:32]} 8. Nc3 {[%clk 0:02:31]}  d4 {[%clk 0:02:30]} 9. b4 {[%clk 0:01:43]}  Qxb4 {[%clk 0:02:26]} 10. Bxd7+ {[%clk 0:01:37]}  Bxd7 {[%clk 0:02:23]} 11. Rb1 {[%clk 0:01:35]}  Qxc3+ {[%clk 0:02:20]} 12. Bd2 {[%clk 0:01:35]}  Qxc2 {[%clk 0:02:09]} 13. Rxb7 {[%clk 0:01:29]}  Bc6 {[%clk 0:02:05]} 14. Rb3 {[%clk 0:01:17]}  Qxa2 {[%clk 0:02:01]} 15. Rd3 {[%clk 0:01:06]}  Qb1+ {[%clk 0:01:58]} 16. Ke2 {[%clk 0:01:03]}  Bb5 {[%clk 0:01:56]} 0-1


[Site "https://www.chess.com"]

[Event "Titled Tuesday Blitz December 06 Late 2022"]
[White "Ardila, Oscar Humberto"]
[Black "Kim, Sergey"]
[WhiteFideId "4404742"]
[BlackFideId "13700570"]
[WhiteElo "1961"]
[BlackElo "2581"]
[Result "0-1"]
[Round "06"]
[TimeControl "180+1"]
[Date "2022.12.07"]
[WhiteClock "0:00:50"]
[BlackClock "0:01:47"]

1. d4 {[%clk 0:02:59]}  Nf6 {[%clk 0:02:59]} 2. c4 {[%clk 0:03:00]}  g6 {[%clk 0:03:00]} 3. Nc3 {[%clk 0:03:00]}  Bg7 {[%clk 0:03:00]} 4. Nf3 {[%clk 0:03:00]}  d6 {[%clk 0:03:01]} 5. e3 {[%clk 0:03:01]}  O-O {[%clk 0:03:00]} 6. Be2 {[%clk 0:03:00]}  Nbd7 {[%clk 0:03:00]} 7. O-O {[%clk 0:03:00]}  e5 {[%clk 0:03:00]} 8. Qc2 {[%clk 0:03:00]}  Re8 {[%clk 0:02:59]} 9. Re1 {[%clk 0:02:59]}  e4 {[%clk 0:02:59]} 10. Nd2 {[%clk 0:02:59]}  Qe7 {[%clk 0:03:00]} 11. Nd5 {[%clk 0:02:57]}  Nxd5 {[%clk 0:02:59]} 12. cxd5 {[%clk 0:02:58]}  Nf6 {[%clk 0:02:59]} 13. Bc4 {[%clk 0:02:51]}  a6 {[%clk 0:02:57]} 14. b4 {[%clk 0:02:49]}  Bf5 {[%clk 0:02:53]} 15. a4 {[%clk 0:02:46]}  h5 {[%clk 0:02:51]} 16. Ba3 {[%clk 0:02:45]}  h4 {[%clk 0:02:48]} 17. h3 {[%clk 0:02:37]}  Qd7 {[%clk 0:02:47]} 18. Kh2 {[%clk 0:02:32]}  g5 {[%clk 0:02:46]} 19. Be2 {[%clk 0:02:25]}  g4 {[%clk 0:02:42]} 20. hxg4 {[%clk 0:02:24]}  Bxg4 {[%clk 0:02:43]} 21. Nf1 {[%clk 0:02:04]}  Nxd5 {[%clk 0:02:39]} 22. Rac1 {[%clk 0:02:00]}  c6 {[%clk 0:02:37]} 23. Bxg4 {[%clk 0:01:54]}  Qxg4 {[%clk 0:02:36]} 24. Qe2 {[%clk 0:01:53]}  Qg5 {[%clk 0:02:23]} 25. g3 {[%clk 0:01:23]}  Re6 {[%clk 0:02:20]} 26. Kg1 {[%clk 0:01:16]}  Rg6 {[%clk 0:02:07]} 27. Kg2 {[%clk 0:00:52]}  Re8 {[%clk 0:01:49]} 28. b5 {[%clk 0:00:50]}  axb5 {[%clk 0:01:48]} 29. axb5 {[%clk 0:00:50]}  cxb5 {[%clk 0:01:48]} 30. Qxb5 {[%clk 0:00:49]}  Nxe3+ {[%clk 0:01:46]} 31. Nxe3 {[%clk 0:00:50]}  Qxb5 {[%clk 0:01:47]} 0-1


[Site "https://www.chess.com"]

[Event "Titled Tuesday Blitz December 06 Late 2022"]
[White "Arnold, Ken"]
[Black "Pinheiro, Iung Alicio de O."]
[WhiteFideId "2056836"]
[BlackFideId "2104350"]
[WhiteElo "2416"]
[BlackElo "2283"]
[Result "0-1"]
[Round "06"]
[TimeControl "180+1"]
[Date "2022.12.07"]
[WhiteClock "0:00:13"]
[BlackClock "0:00:44"]

1. d4 {[%clk 0:03:00]}  Nf6 {[%clk 0:02:59]} 2. Nf3 {[%clk 0:03:00]}  g6 {[%clk 0:02:59]} 3. Bf4 {[%clk 0:02:58]}  d6 {[%clk 0:02:58]} 4. e3 {[%clk 0:02:59]}  Nh5 {[%clk 0:02:58]} 5. Bg3 {[%clk 0:02:58]}  Bg7 {[%clk 0:02:56]} 6. Be2 {[%clk 0:02:58]}  Nxg3 {[%clk 0:02:51]} 7. hxg3 {[%clk 0:02:58]}  Nd7 {[%clk 0:02:45]} 8. c3 {[%clk 0:02:58]}  e5 {[%clk 0:02:44]} 9. Nbd2 {[%clk 0:02:54]}  Qe7 {[%clk 0:02:44]} 10. Qb3 {[%clk 0:02:45]}  e4 {[%clk 0:02:19]} 11. Nh2 {[%clk 0:02:34]}  h5 {[%clk 0:02:13]} 12. Qc2 {[%clk 0:02:28]}  Nf6 {[%clk 0:02:10]} 13. O-O-O {[%clk 0:02:26]}  Bf5 {[%clk 0:02:05]} 14. Rdf1 {[%clk 0:02:18]}  O-O {[%clk 0:01:55]} 15. Qd1 {[%clk 0:02:11]}  Qe6 {[%clk 0:01:48]} 16. Qb3 {[%clk 0:02:06]}  d5 {[%clk 0:01:47]} 17. Kb1 {[%clk 0:02:04]}  b5 {[%clk 0:01:40]} 18. Qxb5 {[%clk 0:01:42]}  Rab8 {[%clk 0:01:38]} 19. Qa5 {[%clk 0:01:37]}  Rb6 {[%clk 0:01:35]} 20. Nb3 {[%clk 0:01:34]}  Rfb8 {[%clk 0:01:35]} 21. Kc2 {[%clk 0:01:20]}  Bf8 {[%clk 0:01:32]} 22. Rc1 {[%clk 0:01:09]}  Qc6 {[%clk 0:01:23]} 23. Nf1 {[%clk 0:00:57]}  Bb4 {[%clk 0:01:22]} 24. Qxa7 {[%clk 0:00:42]}  Ra8 {[%clk 0:01:17]} 25. Qxa8+ {[%clk 0:00:24]}  Qxa8 {[%clk 0:01:18]} 26. cxb4 {[%clk 0:00:25]}  Rxb4 {[%clk 0:01:13]} 27. a3 {[%clk 0:00:24]}  Rb6 {[%clk 0:01:08]} 28. Nc5 {[%clk 0:00:23]}  Nd7 {[%clk 0:01:06]} 29. Nxd7 {[%clk 0:00:22]}  Bxd7 {[%clk 0:01:07]} 30. Nd2 {[%clk 0:00:19]}  Qa4+ {[%clk 0:01:04]} 31. Kb1 {[%clk 0:00:17]}  Qxa3 {[%clk 0:01:04]} 32. b3 {[%clk 0:00:15]}  Ba4 {[%clk 0:00:47]} 33. Rc3 {[%clk 0:00:14]}  Bxb3 {[%clk 0:00:46]} 34. Nxb3 {[%clk 0:00:13]}  Rxb3+ {[%clk 0:00:47]} 35. Rxb3 {[%clk 0:00:13]}  Qxb3+ {[%clk 0:00:48]} 36. Kc1 {[%clk 0:00:14]}  Qc3+ {[%clk 0:00:49]} 37. Kb1 {[%clk 0:00:13]}  Qd2 {[%clk 0:00:44]} 0-1


[Site "https://www.chess.com"]

[Event "Titled Tuesday Blitz December 06 Late 2022"]
[White "Averjanov, Alexey"]
[Black "Moksh Amit Doshi"]
[WhiteFideId "14109867"]
[BlackFideId "25064967"]
[WhiteElo "2657"]
[BlackElo "2524"]
[Result "1/2-1/2"]
[Round "06"]
[TimeControl "180+1"]
[Date "2022.12.07"]
[WhiteClock "0:02:13"]
[BlackClock "0:01:21"]

1. d4 {[%clk 0:03:00]}  Nf6 {[%clk 0:02:51]} 2. c4 {[%clk 0:03:00]}  e6 {[%clk 0:02:42]} 3. Nf3 {[%clk 0:03:00]}  d5 {[%clk 0:02:40]} 4. e3 {[%clk 0:03:00]}  a6 {[%clk 0:02:26]} 5. Nbd2 {[%clk 0:03:00]}  c5 {[%clk 0:02:22]} 6. dxc5 {[%clk 0:03:00]}  Bxc5 {[%clk 0:02:21]} 7. a3 {[%clk 0:03:00]}  O-O {[%clk 0:02:19]} 8. b4 {[%clk 0:03:00]}  Bd6 {[%clk 0:02:13]} 9. Bb2 {[%clk 0:03:00]}  Nc6 {[%clk 0:02:14]} 10. Rc1 {[%clk 0:02:58]}  Qe7 {[%clk 0:02:10]} 11. Be2 {[%clk 0:02:58]}  Bd7 {[%clk 0:02:07]} 12. O-O {[%clk 0:02:58]}  Rfd8 {[%clk 0:02:07]} 13. Qb3 {[%clk 0:02:57]}  Rac8 {[%clk 0:02:03]} 14. Rfd1 {[%clk 0:02:57]}  h6 {[%clk 0:02:03]} 15. h3 {[%clk 0:02:56]}  Bb8 {[%clk 0:01:56]} 16. Ba1 {[%clk 0:02:56]}  Be8 {[%clk 0:01:55]} 17. cxd5 {[%clk 0:02:52]}  Nxd5 {[%clk 0:01:52]} 18. Ne4 {[%clk 0:02:51]}  Ba7 {[%clk 0:01:24]} 19. Nc5 {[%clk 0:02:50]}  Bxc5 {[%clk 0:01:21]} 20. Rxc5 {[%clk 0:02:13]} 1/2-1/2


[Site "https://www.chess.com"]

[Event "Titled Tuesday Blitz December 06 Late 2022"]
[White "Bazeev, German"]
[Black "Alex_Sahakyan2006"]
[WhiteFideId "24119350"]
[WhiteElo "2501"]
[BlackElo "2683"]
[Result "1-0"]
[Round "06"]
[TimeControl "180+1"]
[Date "2022.12.06"]
[WhiteClock "0:00:32"]
[BlackClock "0:00:14"]

1. d4 {[%clk 0:03:00]}  Nf6 {[%clk 0:02:59]} 2. Nf3 {[%clk 0:03:01]}  g6 {[%clk 0:02:58]} 3. c4 {[%clk 0:03:02]}  Bg7 {[%clk 0:02:58]} 4. Nc3 {[%clk 0:03:02]}  O-O {[%clk 0:02:57]} 5. Bg5 {[%clk 0:03:03]}  d6 {[%clk 0:02:53]} 6. e3 {[%clk 0:03:03]}  c5 {[%clk 0:02:53]} 7. Be2 {[%clk 0:03:03]}  Nc6 {[%clk 0:02:52]} 8. d5 {[%clk 0:03:01]}  Na5 {[%clk 0:02:51]} 9. Nd2 {[%clk 0:03:01]}  a6 {[%clk 0:02:50]} 10. a4 {[%clk 0:03:01]}  e6 {[%clk 0:02:46]} 11. O-O {[%clk 0:02:54]}  h6 {[%clk 0:02:46]} 12. Bh4 {[%clk 0:02:54]}  exd5 {[%clk 0:02:43]} 13. cxd5 {[%clk 0:02:54]}  Qb6 {[%clk 0:02:38]} 14. Qc1 {[%clk 0:02:51]}  Re8 {[%clk 0:02:34]} 15. Nc4 {[%clk 0:02:40]}  Nxc4 {[%clk 0:02:32]} 16. Bxc4 {[%clk 0:02:41]}  Ne4 {[%clk 0:02:25]} 17. Bd3 {[%clk 0:02:13]}  Nxc3 {[%clk 0:02:14]} 18. bxc3 {[%clk 0:02:14]}  Qa5 {[%clk 0:02:06]} 19. c4 {[%clk 0:02:11]}  Bd7 {[%clk 0:01:44]} 20. Rb1 {[%clk 0:02:04]}  Rab8 {[%clk 0:01:41]} 21. Bg3 {[%clk 0:01:46]}  Be5 {[%clk 0:01:34]} 22. f4 {[%clk 0:01:46]}  Bg7 {[%clk 0:01:34]} 23. f5 {[%clk 0:01:46]}  Rxe3 {[%clk 0:01:31]} 24. fxg6 {[%clk 0:01:12]}  Rxd3 {[%clk 0:01:25]} 25. gxf7+ {[%clk 0:01:12]}  Kh8 {[%clk 0:01:17]} 26. Bxd6 {[%clk 0:01:13]}  Rf8 {[%clk 0:01:01]} 27. Bxf8 {[%clk 0:01:11]}  Bxf8 {[%clk 0:01:01]} 28. Rxb7 {[%clk 0:01:12]}  Bc8 {[%clk 0:00:35]} 29. Rb8 {[%clk 0:00:52]}  Qc7 {[%clk 0:00:34]} 30. Qf4 {[%clk 0:00:52]}  Qd7 {[%clk 0:00:20]} 31. Rb6 {[%clk 0:00:34]}  Kh7 {[%clk 0:00:14]} 32. Qe4+ {[%clk 0:00:32]} 1-0


[Site "https://www.chess.com"]